bitfinex/quotes_SOLUSD_20240826
["timestamp","ask_amount","ask_price","bid_price","bid_amount"]
[1724657576065,1.56897506,159.37,159.33,1.25648454]
[1724657576381,1.56897506,159.37,159.31,26.1791457]
[1724657576558,1.56897506,159.37,159.32,1.2564851]
[1724657576759,1.56897506,159.37,159.33,1.2564851]
[1724657577051,1.56897506,159.37,159.31,26.1791457]
[1724657577052,1.56897506,159.37,159.31,20.0]
[1724657577258,1.56897506,159.37,159.32,7.43562745]
[1724657577458,1.56897506,159.37,159.33,21.25647864]
[1724657577793,1.56897506,159.37,159.34,1.25647864]
[1724657578086,1.56897506,159.37,159.31,26.17911264]
[1724657578260,1.56897506,159.37,159.32,1.25648434]
[1724657578456,1.56897506,159.37,159.33,1.25648434]
[1724657578656,1.56897506,159.37,159.34,1.25648434]
[1724657578862,390.3,159.38,159.32,10.9342644]
[1724657579169,390.3,159.38,159.33,21.25648434]
[1724657579368,390.3,159.38,159.34,1.25648434]
[1724657580211,390.3,159.38,159.33,20.0]
[1724657580491,390.3,159.38,159.34,1.25647753]
[1724657581876,18.11350569,159.4,159.34,2.51157593]
[1724657581877,408.41350569,159.4,159.34,2.51157593]
[1724657582184,408.41350569,159.4,159.34,10.93287846]
[1724657582404,408.41350569,159.4,159.35,20.0]
[1724657583382,1.56876682,159.39,159.35,20.0]
[1724657584464,1.56876682,159.39,159.33,20.0]
[1724657584665,1.56876682,159.39,159.34,1.25648394]
[1724657584965,1.56876682,159.39,159.33,20.0]
[1724657585164,1.56876682,159.39,159.34,1.25648385]
[1724657585381,1.56876682,159.39,159.33,20.0]
[1724657585584,1.56876682,159.39,159.34,1.2564835]
[1724657585784,1.56876682,159.39,159.33,20.0]
[1724657585984,1.56876682,159.39,159.34,1.25648394]
[1724657586191,1.56876682,159.39,159.33,20.0]
[1724657586560,1.56876682,159.39,159.34,1.25648389]
[1724657586905,1.56876682,159.39,159.33,26.1791449]
[1724657587095,1.56876682,159.39,159.34,1.25648375]
[1724657587297,1.56876682,159.39,159.33,20.0]
[1724657587595,1.56876682,159.39,159.34,1.25648454]
[1724657587773,390.3,159.38,159.32,26.17914852]
[1724657587980,1.56897515,159.37,159.33,1.25648473]
[1724657588185,1.56897515,159.37,159.3,6.17914852]
[1724657588377,1.56897515,159.37,159.31,7.43569609]
[1724657588684,1.56897515,159.37,159.32,1.25654757]
[1724657588870,1.56897515,159.37,159.33,1.25654757]
[1724657589198,1.56897515,159.37,159.3,6.17914852]
[1724657589369,1.56897515,159.37,159.32,1.25654889]
[1724657589574,1.56897515,159.37,159.33,1.25654889]
[1724657589788,1.56904666,159.37,159.31,15.85692858]
[1724657590099,1.56904666,159.37,159.32,1.25652904]
[1724657590277,1.56904666,159.37,159.33,1.25652904]
[1724657590471,1.56904666,159.37,159.34,1.25652904]
[1724657590679,1.56904666,159.37,159.33,1.25652904]
[1724657590875,1.56904666,159.37,159.34,1.25652904]
[1724657591096,1.56904666,159.37,159.33,1.25652904]
[1724657591408,390.3,159.38,159.34,1.25652904]
[1724657591586,1.56887158,159.37,159.32,26.17914852]
[1724657591934,1.56887158,159.37,159.33,1.25650154]
[1724657592061,1.56887158,159.37,159.34,1.25650154]
[1724657592266,1.56887158,159.37,159.32,26.17914852]
[1724657592580,1.56887158,159.37,159.33,1.25650222]
[1724657592796,1.56887158,159.37,159.34,1.25650222]
[1724657592978,1.56887158,159.37,159.32,20.0]
[1724657593185,1.56887158,159.37,159.33,1.25650222]
[1724657593782,1.56887158,159.37,159.34,1.25650222]
[1724657593990,1.56888358,159.38,159.32,26.17924755]
[1724657594190,46.56888358,159.38,159.33,1.25651942]
[1724657594492,46.56888358,159.38,159.32,20.0]
[1724657594706,46.56888358,159.38,159.33,1.25653462]
[1724657594989,46.56888358,159.38,159.31,6.17943037]
[1724657595203,46.56888358,159.38,159.32,21.25653512]
[1724657595377,46.56888358,159.38,159.33,1.25653512]
[1724657595575,46.56888358,159.38,159.34,1.25652816]
[1724657595786,46.56888358,159.38,159.3,26.17939325]
[1724657595985,46.56888358,159.38,159.31,7.43592154]
[1724657596209,46.56888358,159.38,159.32,27.43592154]
[1724657596505,46.56888358,159.38,159.33,1.25652829]
[1724657596706,46.56888358,159.38,159.34,1.25652829]
[1724657596898,46.56888358,159.38,159.31,6.17935326]
[1724657597096,46.56888358,159.38,159.32,7.43588102]
[1724657597301,6.2747,159.37,159.33,1.25652776]
[1724657597501,1.56916124,159.36,159.3,6.17935326]
[1724657597810,1.56916124,159.36,159.31,7.43590009]
[1724657598010,1.56916124,159.36,159.32,7.43590009]
[1724657598180,1.56916124,159.36,159.33,21.25654683]
[1724657598380,1.56916124,159.36,159.34,1.25654683]
[1724657598616,51.2744,159.38,159.31,6.17935326]
[1724657598617,1.56914991,159.37,159.31,6.17935326]
[1724657598890,1.56914991,159.37,159.32,27.43600139]
[1724657599091,1.56914991,159.37,159.33,1.25654078]
[1724657599306,1.56914991,159.37,159.34,1.25654078]
[1724657599491,1.56914991,159.37,159.3,6.1794982]
[1724657599806,390.3,159.36,159.31,27.43604569]
[1724657599995,1.56916779,159.35,159.32,1.25654749]
[1724657600174,1.56916779,159.35,159.33,1.25654749]
[1724657600374,1.56916779,159.35,159.3,6.18006537]
[1724657600596,1.56916779,159.35,159.31,27.43671414]
[1724657600906,390.3,159.36,159.32,27.4364406]
[1724657601087,390.3,159.36,159.33,1.25664877]
[1724657601286,390.3,159.36,159.34,1.25659866]
[1724657601602,390.3,159.36,159.31,26.179789]
[1724657601958,390.3,159.36,159.32,27.43638816]
[1724657602216,390.3,159.36,159.33,21.25659916]
[1724657602512,1.56911496,159.35,159.33,1.25659916]
[1724657602675,1.56911496,159.35,159.29,20.0]
[1724657602676,1.56911496,159.35,159.34,1.25659916]
[1724657603512,390.3,159.36,159.34,1.25659916]
[1724657603718,390.3,159.36,159.31,26.17978758]
[1724657603935,390.3,159.36,159.32,17.11416605]
[1724657604122,390.3,159.36,159.33,27.43638599]
[1724657604430,390.3,159.36,159.34,7.4360038]
[1724657604603,390.3,159.36,159.35,21.25659841]
[1724657605113,390.3,159.36,159.35,20.0]
[1724657605301,390.3,159.36,159.35,21.25652872]
[1724657605699,390.3,159.39,159.35,21.25652872]
[1724657605902,391.86886726,159.39,159.33,26.17934697]
[1724657606105,391.86886726,159.39,159.34,7.43587493]
[1724657606321,391.86886726,159.39,159.35,21.25652796]
[1724657606542,395.13417736,159.39,159.34,6.17939192]
[1724657606705,395.13417736,159.39,159.33,20.0]
[1724657606706,395.13417736,159.39,159.35,21.25652826]
[1724657606906,395.13417736,159.39,159.35,20.0]
[1724657607519,395.13417736,159.39,159.33,26.17939192]
[1724657607718,395.13417736,159.39,159.34,6.17939192]
[1724657607917,395.13417736,159.39,159.35,20.0]
[1724657608202,395.13417736,159.39,159.34,6.17939334]
[1724657608401,395.13417736,159.39,159.35,20.0]
[1724657608635,395.13417736,159.39,159.34,6.17939192]
[1724657608921,395.13417736,159.39,159.35,20.0]
[1724657609134,395.13417736,159.39,159.34,6.17934441]
[1724657609306,395.13417736,159.39,159.35,20.0]
[1724657609504,395.13417736,159.39,159.34,6.17934299]
[1724657609705,395.13417736,159.39,159.35,20.0]
[1724657610507,395.13417736,159.39,159.33,26.17934299]
[1724657610706,395.13417736,159.39,159.34,6.17934299]
[1724657610908,395.13417736,159.39,159.35,20.0]
[1724657611124,3.2653101,159.38,159.34,6.17939334]
[1724657611335,1.56886465,159.37,159.35,20.0]
[1724657611559,1.56886465,159.37,159.33,20.0]
[1724657611917,1.56886447,159.38,159.33,20.0]
[1724657612145,393.5653101,159.39,159.34,6.17934583]
[1724657612437,393.5653101,159.39,159.35,20.0]
[1724657612617,393.5653101,159.39,159.34,6.17934299]
[1724657612815,393.5653101,159.39,159.35,20.0]
[1724657613015,393.5653101,159.39,159.34,6.17934299]
[1724657613232,393.5653101,159.39,159.35,20.0]
[1724657613730,393.5653101,159.39,159.34,26.17934299]
[1724657613932,393.5653101,159.39,159.34,20.0]
[1724657614475,390.3,159.39,159.38,9.67778006]
[1724657614776,390.3,159.39,159.38,35.85608138]
[1724657615034,390.3,159.39,159.38,29.67778006]
[1724657615244,390.3,159.39,159.38,35.85531948]
[1724657617537,390.3,159.39,159.38,39.43276388]
[1724657620237,390.3,159.39,159.38,33.25522446]
[1724657620554,390.3,159.39,159.38,39.43233296]
[1724657621136,390.3,159.39,159.38,84.43233296]
[1724657621339,390.3,159.39,159.38,84.43057943]
[1724657622155,356.72892894,159.39,159.38,84.43057943]
[1724657623232,356.72892894,159.39,159.38,85.68515071]
[1724657623458,347.62892894,159.39,159.38,84.43057943]
[1724657623838,347.62892894,159.39,159.38,84.42961367]
[1724657626362,30.6839,159.5,159.38,85.68417919]
[1724657626546,30.6839,159.5,159.42,9.67778006]
[1724657626851,30.6839,159.5,159.44,9.67778006]
[1724657627162,1.56786569,159.49,159.45,20.0]
[1724657627343,1.56789292,159.48,159.45,20.0]
[1724657627843,1.56789292,159.48,159.43,20.0]
[1724657631145,5.75465549,159.49,159.44,9.67778006]
[1724657631355,5.75465549,159.49,159.45,20.0]
[1724657632949,1.56768407,159.48,159.45,20.0]
[1724657633153,1.56768407,159.48,159.4,29.67778006]
[1724657633474,1.56768407,159.48,159.4,9.67778006]
[1724657633643,1.56768407,159.48,159.4,14.82394474]
[1724657633971,1.56768407,159.48,159.4,9.67778006]
[1724657634172,1.56768407,159.48,159.4,13.2542134]
[1724657634343,1.56768407,159.48,159.4,14.82399539]
[1724657634538,1.56768407,159.48,159.4,13.2542134]
[1724657635338,1.56768407,159.48,159.41,20.0]
[1724657636066,1.56768407,159.48,159.4,29.67778006]
[1724657639644,15.43243555,159.49,159.41,1.25439632]
[1724657641449,363.06136449,159.49,159.41,1.25439632]
[1724657641649,353.38358443,159.49,159.44,9.67778006]
[1724657641955,353.38358443,159.49,159.45,20.0]
[1724657643580,353.38358443,159.49,159.45,21.25415081]
[1724657644355,353.38358443,159.49,159.46,1.25410168]
[1724657644774,353.38358443,159.49,159.46,10.93182147]
[1724657644977,353.38358443,159.49,159.47,20.0]
[1724657645385,5.75465549,159.49,159.47,20.0]
[1724657646295,5.75465549,159.49,159.48,1.25396704]
[1724657646463,5.75465549,159.49,159.48,10.9317471]
[1724657646657,5.75465549,159.49,159.48,30.9317471]
[1724657655279,5.75465549,159.49,159.48,29.67778006]
[1724657657089,5.75465549,159.49,159.48,20.0]
[1724657659475,5.75465549,159.49,159.47,9.67778006]
[1724657659683,5.75465549,159.49,159.48,20.0]
[1724657660485,5.75465549,159.49,159.48,21.56919999]
[1724657661610,5.75465549,159.49,159.48,25.14404252]
[1724657664892,5.75465549,159.49,159.48,23.57484253]
[1724657665083,5.75465549,159.49,159.48,25.14404252]
[1724657665288,5.75465549,159.49,159.48,23.57484253]
[1724657665595,5.75465549,159.49,159.48,25.14404252]
[1724657668264,5.75465549,159.49,159.46,9.67778006]
[1724657668482,5.75465549,159.49,159.48,5.14404252]
[1724657670291,5.75465549,159.49,159.48,25.14404252]
[1724657671494,5.75465549,159.49,159.48,20.0]
[1724657671700,5.75465549,159.49,159.48,5.14427858]
[1724657671882,5.75465549,159.49,159.48,25.14427858]
[1724657674632,5.75465549,159.49,159.48,20.0]
[1724657674798,5.75465549,159.49,159.48,3.57501893]
[1724657674983,5.75465549,159.49,159.48,5.14428345]
[1724657675301,5.75465549,159.49,159.48,25.14428345]
[1724657675486,5.75465549,159.49,159.48,31.3174236]
[1724657676387,5.75465549,159.49,159.48,26.39956965]
[1724657676602,5.75465549,159.49,159.48,32.5727098]
[1724657676783,5.75465549,159.49,159.48,26.39956965]
[1724657676989,5.75465549,159.49,159.48,32.5727098]
[1724657677592,5.75465549,159.49,159.48,26.39956965]
[1724657677800,5.75465549,159.49,159.48,20.0]
[1724657678106,5.75465549,159.49,159.48,11.31613547]
[1724657678276,5.75465549,159.49,159.48,32.57142162]
[1724657678472,5.75465549,159.49,159.48,26.39898409]
[1724657678970,5.75465549,159.49,159.48,26.39897763]
[1724657681105,5.75465549,159.49,159.48,20.0]
[1724657681306,5.75465549,159.49,159.48,8.40448939]
[1724657681477,5.75465549,159.49,159.48,29.97359711]
[1724657684407,5.75465549,159.49,159.48,29.97359716]
[1724657687220,5.75465549,159.49,159.48,26.39900681]
[1724657687588,5.75465549,159.49,159.48,26.39900657]
[1724657690412,5.75465549,159.49,159.48,26.39900628]
[1724657690911,5.75465549,159.49,159.48,26.39898304]
[1724657691299,5.75465549,159.49,159.48,34.24452035]
[1724657692303,5.75465549,159.49,159.48,34.24452841]
[1724657696613,5.75465549,159.49,159.48,43.92230847]
[1724657696825,5.75465549,159.49,159.48,36.07677116]
[1724657697629,347.62892894,159.56,159.48,79.8209954]
[1724657697934,32.1294,159.58,159.54,9.67778006]
[1724657698096,13.021,159.61,159.54,9.67778006]
[1724657698097,13.021,159.61,159.55,24.82757887]
[1724657699103,13.021,159.61,159.56,4.82941965]
[1724657699303,13.021,159.61,159.57,3.57423692]
[1724657699627,13.021,159.61,159.58,3.57423692]
[1724657699816,13.021,159.61,159.55,21.25332229]
[1724657700021,13.021,159.61,159.56,4.82755189]
[1724657700325,37.93701722,159.62,159.57,4.82611912]
[1724657700553,6.80551722,159.62,159.58,1.25320125]
[1724657700696,6.80551722,159.62,159.58,21.25316065]
[1724657700892,6.80551722,159.62,159.58,23.57279426]
[1724657701120,6.80551722,159.62,159.58,20.0]
[1724657701330,6.80551722,159.62,159.59,3.57206083]
[1724657701530,6.80551722,159.62,159.6,3.57206083]
[1724657701704,6.80551722,159.62,159.6,20.0]
[1724657702229,6.80551722,159.62,159.59,20.0]
[1724657702614,1.56641581,159.61,159.59,20.0]
[1724657702913,1.56641581,159.61,159.55,20.0]
[1724657703119,1.56641581,159.61,159.56,3.56965107]
[1724657703322,1.56641581,159.61,159.57,3.56965107]
[1724657703625,1.56641581,159.61,159.56,3.56979029]
[1724657703823,1.56641581,159.61,159.55,20.0]
[1724657703824,1.56641581,159.61,159.57,3.56981021]
[1724657704035,1.56641581,159.61,159.56,3.56981021]
[1724657704205,1.56641581,159.61,159.55,20.0]
[1724657704408,1.56641581,159.61,159.56,3.56963947]
[1724657704626,1.56641581,159.61,159.57,3.56963947]
[1724657704830,1.56641581,159.61,159.56,3.57012763]
[1724657705007,1.5666519,159.6,159.53,20.0]
[1724657705209,1.5666519,159.6,159.54,3.5711462]
[1724657705527,1.5666519,159.6,159.52,4.82599339]
[1724657705704,1.5666519,159.6,159.53,3.5711462]
[1724657705903,1.5666519,159.6,159.5,56.18234873]
[1724657706099,11.24443196,159.6,159.51,4.82649849]
[1724657706343,11.24443196,159.6,159.52,3.5715991]
[1724657706621,11.24443196,159.6,159.53,3.5715991]
[1724657706831,1.5666519,159.6,159.52,9.67778006]
[1724657706998,1.5666519,159.6,159.53,3.57134605]
[1724657707206,1.5666519,159.6,159.54,3.57134605]
[1724657707515,11.24443196,159.6,159.53,23.57134605]
[1724657707718,14.50974206,159.6,159.53,20.0]
[1724657708533,3.2653101,159.6,159.53,20.0]
[1724657708707,35.9389101,159.61,159.54,14.50074913]
[1724657708902,1.56664085,159.6,159.55,20.0]
[1724657709107,1.56664085,159.6,159.53,29.67778006]
[1724657709527,1.56664085,159.6,159.54,3.56969607]
[1724657710412,35.9389101,159.61,159.54,3.56969607]
[1724657710413,37.50555918,159.61,159.54,3.56969607]
[1724657711518,1.56664898,159.6,159.54,3.56969607]
[1724657712741,1.56664898,159.6,159.54,3.56881214]
[1724657713242,1.56664898,159.6,159.53,29.67778006]
[1724657715530,11.24442904,159.6,159.53,20.0]
[1724657715732,11.24442904,159.6,159.51,29.67778006]
[1724657716120,11.24442904,159.6,159.52,3.56688169]
[1724657716322,11.24442904,159.6,159.53,3.56688169]
[1724657716653,11.24442904,159.6,159.52,3.56688169]
[1724657716946,11.24442904,159.6,159.53,3.56688169]
[1724657717142,11.24442904,159.6,159.51,29.67778006]
[1724657717653,11.24442904,159.6,159.52,3.5657896]
[1724657717823,23.51492904,159.6,159.52,3.5657896]
[1724657718536,1.56724665,159.54,159.49,3.5657896]
[1724657718917,1.56724665,159.54,159.5,3.56792892]
[1724657719253,11.24502671,159.54,159.48,3.56798404]
[1724657719460,12.2705,159.55,159.48,3.56798404]
[1724657719619,12.2705,159.55,159.47,1.25518332]
[1724657719620,12.2705,159.55,159.49,3.56798404]
[1724657719822,12.2705,159.55,159.47,3.56798404]
[1724657720120,12.2705,159.55,159.48,13.2457641]
[1724657720121,13.83778051,159.55,159.48,13.2457641]
[1724657720320,13.83778051,159.55,159.49,3.56798404]
[1724657720543,12.2705,159.55,159.5,1.25374626]
[1724657720755,31.5595,159.56,159.5,1.25374626]
[1724657720756,31.5595,159.56,159.5,10.93152632]
[1724657721053,31.5595,159.56,159.51,20.0]
[1724657723551,39.39366485,159.56,159.51,20.0]
[1724657723759,39.39366485,159.56,159.49,20.0]
[1724657723955,33.12646485,159.56,159.5,3.56742369]
[1724657725547,33.12646485,159.56,159.5,3.56897341]
[1724657726540,39.39366485,159.56,159.5,3.56897341]
[1724657728555,39.39366485,159.56,159.49,20.0]
[1724657728946,39.39366485,159.56,159.5,3.56907948]
[1724657729657,6.2684,159.53,159.5,3.56907948]
[1724657729870,7.83622793,159.52,159.45,9.67778006]
[1724657730068,1.56764427,159.51,159.46,3.57018371]
[1724657730360,6.2701,159.49,159.45,3.57283436]
[1724657730543,1.56785573,159.48,159.43,3.57283436]
[1724657730749,1.56785573,159.48,159.44,3.57283436]
[1724657730963,1.56785573,159.48,159.42,1.25559391]
[1724657731151,7.83825573,159.48,159.43,3.57342625]
[1724657731350,6.2708,159.47,159.42,3.57342625]
[1724657731552,1.56800409,159.46,159.41,3.57342625]
[1724657731864,1.56800409,159.46,159.42,3.57485303]
[1724657732174,1.56800409,159.46,159.4,1.25579939]
[1724657732343,1.56800409,159.46,159.41,3.57460063]
[1724657732669,7.83886175,159.47,159.4,3.57460063]
[1724657732845,15.94818006,159.48,159.41,3.57460063]
[1724657733046,6.2704,159.48,159.4,3.57460063]
[1724657733268,6.2704,159.48,159.41,3.57460063]
[1724657733456,6.2704,159.48,159.41,23.57460063]
[1724657733665,7.83838299,159.48,159.41,20.0]
[1724657734365,7.83838299,159.48,159.4,20.0]
[1724657734566,7.83838299,159.48,159.41,3.57318889]
[1724657735247,7.83838299,159.48,159.4,20.0]
[1724657735666,11.24576305,159.48,159.35,40.68405268]
[1724657735864,6.272,159.44,159.36,13.25140122]
[1724657736060,1.56837869,159.43,159.36,13.25140122]
[1724657736254,1.56837869,159.43,159.36,9.67778006]
[1724657736461,1.56837869,159.43,159.36,13.2531391]
[1724657737169,1.56834073,159.42,159.36,3.57535904]
[1724657737571,1.56845668,159.43,159.36,3.57535904]
[1724657738071,1.56845668,159.43,159.36,23.57535904]
[1724657738278,1.56845668,159.43,159.36,23.57583518]
[1724657738482,1.56845668,159.43,159.36,20.0]
[1724657740173,44.56038077,159.44,159.36,20.0]
[1724657740380,44.56038077,159.44,159.37,1.25476537]
[1724657741389,38.28838077,159.44,159.37,1.25476537]
[1724657741558,38.28838077,159.44,159.35,29.67778006]
[1724657741559,39.85683757,159.44,159.35,29.67778006]
[1724657741755,38.28838077,159.44,159.37,9.67778006]
[1724657742080,38.28838077,159.44,159.38,21.25466884]
[1724657742659,39.85671961,159.44,159.38,20.0]
[1724657752303,12.9346,159.43,159.34,2.43338519]
[1724657752499,12.9346,159.43,159.31,39.18152607]
[1724657752500,1.56858259,159.42,159.31,39.18152607]
[1724657752797,1.56858259,159.42,159.35,9.67778006]
[1724657752974,12.9346,159.43,159.37,9.67778006]
[1724657753170,12.9346,159.43,159.38,1.25471074]
[1724657753374,38.28838077,159.44,159.32,23.5745259]
[1724657753585,38.28838077,159.44,159.32,20.0]
[1724657753789,38.28838077,159.44,159.38,9.67778006]
[1724657754200,38.28838077,159.44,159.39,20.0]
[1724657755404,38.28838077,159.44,159.4,9.67778006]
[1724657755579,38.28838077,159.44,159.41,20.0]
[1724657756406,38.28838077,159.44,159.39,20.0]
[1724657760932,38.28838077,159.44,159.4,10.93218732]
[1724657760933,6.59728077,159.44,159.4,10.93218732]
[1724657761109,6.59728077,159.44,159.41,20.0]
[1724657761316,6.59728077,159.44,159.42,10.93208335]
[1724657761502,6.59728077,159.44,159.43,20.0]
[1724657762715,6.59728077,159.44,159.41,20.0]
[1724657765104,6.59728077,159.44,159.39,20.0]
[1724657767997,6.59728077,159.44,159.37,12.18924444]
[1724657768321,6.59728077,159.44,159.38,25.13195116]
[1724657768501,6.59728077,159.44,159.39,5.13195116]
[1724657768699,6.59728077,159.44,159.4,20.0]
[1724657769300,6.59728077,159.44,159.38,20.0]
[1724657769501,6.59728077,159.44,159.39,1.25453871]
[1724657769720,6.59728077,159.44,159.39,6.38776084]
[1724657769921,6.59728077,159.44,159.4,20.0]
[1724657770606,6.59728077,159.44,159.38,20.0]
[1724657770801,6.59728077,159.44,159.39,5.13324168]
[1724657770997,6.59728077,159.44,159.4,20.0]
[1724657771702,6.59728077,159.44,159.38,20.0]
[1724657772015,6.59728077,159.44,159.39,5.133706]
[1724657772235,6.59728077,159.44,159.4,25.133706]
[1724657772431,6.59728077,159.44,159.4,20.0]
[1724657772811,6.59728077,159.44,159.38,20.0]
[1724657773034,6.59728077,159.44,159.39,5.13389003]
[1724657773219,6.59728077,159.44,159.4,26.3884355]
[1724657773425,6.59728077,159.44,159.41,5.13389003]
[1724657773611,6.59728077,159.44,159.42,20.0]
[1724657774115,6.59728077,159.44,159.38,20.0]
[1724657774316,6.59728077,159.44,159.39,5.13410808]
[1724657774526,6.59728077,159.44,159.4,25.13410808]
[1724657774727,6.59728077,159.44,159.41,25.13410808]
[1724657775037,6.59728077,159.44,159.42,5.13410808]
[1724657775212,6.59728077,159.44,159.41,20.0]
[1724657775537,6.59728077,159.44,159.42,5.1369531]
[1724657775732,6.59728077,159.44,159.43,1.5699105]
[1724657776237,6.59728077,159.44,159.43,5.13764905]
[1724657776416,6.59728077,159.44,159.43,5.13764156]
[1724657777634,6.59728077,159.44,159.43,3.56773855]
[1724657777839,6.59728077,159.44,159.43,5.13837002]
[1724657778506,6.59728077,159.44,159.43,25.13837002]
[1724657779542,6.59728077,159.44,159.43,25.13373698]
[1724657782940,6.59728077,159.44,159.43,20.0]
[1724657783133,6.59728077,159.44,159.43,5.13578886]
[1724657783322,6.59728077,159.44,159.43,25.13578886]
[1724657785258,6.59728077,159.44,159.43,5.13578886]
[1724657785465,6.59728077,159.44,159.43,25.13578886]
[1724657786416,6.59728077,159.44,159.43,25.1362307]
[1724657793348,6.59728077,159.44,159.43,23.56642668]
[1724657793555,6.59728077,159.44,159.43,25.13162635]
[1724657796634,6.59728077,159.44,159.43,26.38746092]
[1724657797127,6.59728077,159.44,159.43,26.38723219]
[1724657798140,6.59728077,159.44,159.43,25.13139766]
[1724657800359,6.59728077,159.44,159.43,21.56981492]
[1724657800532,6.59728077,159.44,159.43,6.38604811]
[1724657800849,6.59728077,159.44,159.43,26.38604811]
[1724657803445,33.3247,159.52,159.43,72.64039867]
[1724657803635,33.3247,159.52,159.45,9.67778006]
[1724657803839,33.3247,159.52,159.46,7.64005437]
[1724657804038,33.3247,159.52,159.47,26.38604811]
[1724657804345,33.3247,159.52,159.48,6.38604811]
[1724657804521,33.3247,159.52,159.49,6.38604811]
[1724657804725,33.3247,159.52,159.5,5.13019618]
[1724657804955,33.3247,159.52,159.47,20.0]
[1724657805128,33.3247,159.52,159.48,6.38121297]
[1724657805327,33.3247,159.52,159.49,5.12575525]
[1724657805529,1.56751557,159.51,159.46,20.0]
[1724657805851,1.56751557,159.51,159.47,6.38169916]
[1724657806034,1.56751557,159.51,159.48,26.38169916]
[1724657806236,1.56751557,159.51,159.49,5.12624661]
[1724657806561,347.62892894,159.54,159.5,5.12480111]
[1724657806732,347.62892894,159.54,159.51,5.12480111]
[1724657806932,347.62892894,159.54,159.47,10.93179139]
[1724657807242,347.62892894,159.54,159.48,25.12509276]
[1724657807443,347.62892894,159.54,159.49,5.12509276]
[1724657807642,347.62892894,159.54,159.5,5.12509276]
[1724657807838,347.62892894,159.54,159.51,1.56908617]
[1724657808034,347.62892894,159.54,159.49,1.25390563]
[1724657808238,347.62892894,159.54,159.5,5.12489679]
[1724657808433,347.62892894,159.54,159.51,5.12489679]
[1724657808764,347.62892894,159.54,159.49,9.67778006]
[1724657808933,30.4615,159.56,159.5,5.1235344]
[1724657809138,1.56708509,159.57,159.51,21.5690377]
[1724657809461,347.62892894,159.58,159.51,20.0]
[1724657809633,347.62892894,159.58,159.5,20.0]
[1724657809953,347.62892894,159.58,159.51,16.05367787]
[1724657810259,347.62892894,159.58,159.53,9.67778006]
[1724657810564,347.62892894,159.58,159.54,20.0]
[1724657813844,30.5894,159.6,159.54,20.0]
[1724657814045,32.15621519,159.6,159.54,20.0]
[1724657814237,6.2663,159.59,159.49,26.14173859]
[1724657814443,40.26718006,159.6,159.5,50.12527702]
[1724657814628,40.26718006,159.6,159.51,25.12527702]
[1724657814832,1.56690406,159.59,159.51,20.0]
[1724657815359,46.53278006,159.6,159.52,1.25350531]
[1724657815656,1.56686491,159.59,159.51,20.0]
[1724657817466,1.56686491,159.59,159.51,29.67778006]
[1724657817939,41.83404544,159.6,159.51,29.67778006]
[1724657818137,353.89422894,159.61,159.52,1.2534511]
[1724657819765,1.56681646,159.6,159.51,29.67778006]
[1724657824066,6.2669,159.57,159.48,33.87543028]
[1724657824366,11.24501007,159.56,159.48,31.4136]
[1724657824947,1.56723001,159.56,159.48,41.09138006]
[1724657825671,17.51231007,159.56,159.48,31.4136]
[1724657825969,6.2685,159.53,159.39,20.0]
[1724657826161,1.56756437,159.52,159.44,30.9105]
[1724657826359,1.56756437,159.51,159.44,30.9105]
[1724657827152,9.67778006,159.5,159.44,30.9105]
[1724657827349,1.56784375,159.49,159.44,30.9105]
[1724657827673,1.56787035,159.48,159.43,12.1327]
[1724657828551,1.56786896,159.49,159.43,12.1327]
[1724657828754,1.56786896,159.48,159.44,20.0]
[1724657829656,1.56786972,159.49,159.44,20.0]
[1724657832058,347.62892894,159.5,159.44,20.0]
[1724657832454,347.62892894,159.5,159.44,21.25417717]
[1724657832673,347.62892894,159.5,159.44,20.0]
[1724657833880,347.62892894,159.5,159.44,29.67778006]
[1724657835077,347.62892894,159.5,159.48,9.67778006]
[1724657835275,347.62892894,159.5,159.49,20.0]
[1724657835872,347.62892894,159.5,159.48,20.0]
[1724657837680,6.2676,159.55,159.48,20.0]
[1724657837880,1.56733194,159.54,159.48,20.0]
[1724657839487,396.590609,159.56,159.48,20.0]
[1724657841000,1.56733287,159.55,159.48,20.0]
[1724657841156,1.56733429,159.54,159.48,20.0]
[1724657841874,6.2677,159.55,159.48,20.0]
[1724657842180,1.56746841,159.54,159.48,20.0]
[1724657843572,349.19639735,159.54,159.48,20.0]
[1724657849218,349.19639735,159.54,159.49,1.56907634]
[1724657849610,1.56746841,159.54,159.49,1.56907634]
[1724657849819,1.56746841,159.54,159.49,5.13931391]
[1724657850020,1.56746841,159.54,159.5,20.0]
[1724657850316,1.56746841,159.54,159.48,20.0]